bitfinex-derivatives/quotes_SOLF0:USTF0_20241009
["timestamp","ask_amount","ask_price","bid_price","bid_amount"]
[1728495995686,3.5394,141.36,141.33,8.6799]
[1728495995991,10.88,141.35,141.33,3.5399]
[1728495996586,3.5395,141.36,141.32,10.88]
[1728495996893,14.4192,141.37,141.34,3.5398]
[1728495997690,10.88,141.37,141.34,3.5398]
[1728495997996,10.88,141.37,141.31,16.02]
[1728495998496,3.5395,141.36,141.32,10.88]
[1728495998793,3.5395,141.36,141.34,3.5397]
[1728496002604,5.14,141.38,141.31,10.88]
[1728496002605,14.4197,141.35,141.31,10.88]
[1728496003097,14.4197,141.35,141.32,3.5403]
[1728496003800,3.5399,141.34,141.32,3.5403]
[1728496004501,10.88,141.34,141.32,3.5403]
[1728496005399,10.88,141.34,141.33,3.5401]
[1728496006200,10.88,141.34,141.3,5.14]
[1728496006396,10.88,141.34,141.31,3.5404]
[1728496006793,3.5401,141.33,141.31,3.5404]
[1728496006990,10.88,141.34,141.31,3.5404]
[1728496008303,10.88,141.33,141.29,0.12502]
[1728496009293,14.4202,141.33,141.29,0.12502]
[1728496009598,10.88,141.33,141.29,0.12502]
[1728496010005,10.88,141.33,141.31,3.5404]
[1728496010804,14.4201,141.33,141.31,3.5404]
[1728496011201,10.88,141.33,141.31,3.5404]
[1728496012701,14.4204,141.32,141.29,3.66592]
[1728496013601,14.4204,141.32,141.29,0.12502]
[1728496013808,10.88,141.32,141.3,3.5407]
[1728496015001,14.4204,141.32,141.3,3.5407]
[1728496020112,5.14,141.35,141.29,0.12502]
[1728496020310,17.1045,141.37,141.35,3.5395]
[1728496020519,22.2445,141.37,141.35,3.5395]
[1728496021011,12.1974,141.37,141.36,3.5393]
[1728496021212,10.88,141.37,141.36,3.5393]
[1728496021404,10.88,141.37,141.33,10.88]
[1728496021710,10.88,141.37,141.35,3.5394]
[1728496022709,3.5394,141.36,141.34,3.5397]
[1728496024207,14.4191,141.37,141.35,3.5396]
[1728496025910,10.88,141.37,141.36,3.5393]
[1728496026120,5.14,141.39,141.34,10.88]
[1728496026414,19.5587,141.39,141.37,3.5389]
[1728496027414,10.88,141.38,141.37,3.5389]
[1728496027925,10.88,141.38,141.34,10.88]
[1728496028129,14.4188,141.38,141.36,3.5392]
[1728496028613,10.88,141.38,141.33,16.02]
[1728496028815,10.88,141.37,141.33,5.14]
[1728496029214,14.4193,141.37,141.34,3.5398]
[1728496030627,10.88,141.37,141.34,3.5398]
[1728496030930,3.5393,141.36,141.34,3.5398]
[1728496034024,14.4192,141.37,141.35,3.5396]
[1728496035621,10.88,141.36,141.3,1.3985]
[1728496035831,10.88,141.34,141.32,3.5401]
[1728496036835,10.88,141.34,141.33,3.5401]
[1728496037928,10.88,141.35,141.34,3.5398]
[1728496038842,2.8249,141.38,141.32,10.88]
[1728496039035,10.88,141.37,141.33,10.88]
[1728496039628,14.4192,141.37,141.35,3.5394]
[1728496040331,10.88,141.37,141.36,3.5393]
[1728496043334,14.4191,141.37,141.35,3.5395]
[1728496043835,10.88,141.37,141.33,5.14]
[1728496044228,10.88,141.37,141.36,3.5393]
[1728496045639,10.88,141.37,141.33,5.14]
[1728496045938,10.88,141.36,141.34,3.5397]
[1728496046238,14.4195,141.36,141.34,3.5397]
[1728496046736,3.5398,141.34,141.3,4.1378]
[1728496046945,3.5398,141.34,141.3,9.2778]
[1728496046946,10.88,141.34,141.3,9.2778]
[1728496047430,14.4203,141.32,141.29,5.26502]
[1728496047743,10.88,141.3,141.29,3.66612]
[1728496051741,10.88,141.3,141.29,0.12502]
[1728496051742,14.4208,141.3,141.29,0.12502]
[1728496052134,10.88,141.3,141.29,0.12502]
[1728496053848,14.4208,141.3,141.29,0.12502]
[1728496055239,10.88,141.3,141.29,0.12502]
[1728496055947,14.4208,141.3,141.29,0.12502]
[1728496062148,3.5417,141.27,141.22,56.37006166]
[1728496062445,10.88,141.26,141.24,3.5421]
[1728496063360,14.4219,141.26,141.24,3.5421]
[1728496063554,10.88,141.25,141.23,0.12502]
[1728496063743,10.88,141.26,141.23,0.12502]
[1728496063948,14.422,141.26,141.24,3.5422]
[1728496065446,14.422,141.26,141.23,0.12502]
[1728496065650,14.422,141.26,141.23,3.66752]
[1728496066655,14.4223,141.24,141.23,0.12502]
[1728496067041,10.88,141.24,141.07,20.98600245]
[1728496067246,10.88,141.2,141.19,3.5433]
[1728496069759,10.88,141.22,141.18,10.88]
[1728496070459,10.88,141.24,141.2,10.88]
[1728496070851,10.88,141.22,141.21,3.543]
[1728496071156,10.88,141.22,141.17,0.12502]
[1728496071356,10.88,141.18,141.17,0.12502]
[1728496071550,10.88,141.19,141.17,0.12502]
[1728496072353,10.88,141.19,141.18,3.5438]
[1728496074460,25.703,141.22,141.19,3.5434]
[1728496075050,22.16,141.22,141.2,3.5432]
[1728496075455,5.14,141.22,141.17,0.12502]
[1728496075757,3.5426,141.23,141.17,0.12502]
[1728496076551,20.5623,141.24,141.17,0.12502]
[1728496077058,17.02,141.24,141.19,3.5436]
[1728496077255,3.5426,141.23,141.17,0.12502]
[1728496077757,3.5426,141.23,141.2,3.5431]
[1728496078148,3.5426,141.23,141.21,3.5431]
[1728496079459,20.5625,141.24,141.21,3.5431]
[1728496080051,20.5625,141.24,141.22,3.5428]
[1728496080663,20.5625,141.24,141.21,3.543]
[1728496081353,20.5625,141.24,141.18,5.14]
[1728496081560,20.5625,141.24,141.22,3.5427]
[1728496083756,3.5428,141.22,141.2,3.5432]
[1728496084654,3.5428,141.23,141.2,3.5432]
[1728496085861,17.02,141.24,141.19,3.5435]
[1728496086057,17.02,141.22,141.18,5.14]
[1728496086562,3.5432,141.21,141.18,8.6837]
[1728496086766,3.5432,141.21,141.18,3.5437]
[1728496086966,3.5432,141.21,141.19,3.5436]
[1728496087357,17.02,141.24,141.17,17.14502]
[1728496087563,17.02,141.24,141.22,3.5428]
[1728496088364,5.14,141.25,141.2,3.5433]
[1728496088565,5.14,141.25,141.18,6.4677]
[1728496088862,3.5425,141.24,141.21,3.543]
[1728496090158,3.5425,141.24,141.22,3.5428]
[1728496090370,12.43391994,141.29,141.22,17.02]
[1728496090558,8.89261994,141.29,141.22,17.02]
[1728496090754,8.89261994,141.29,141.26,3.5417]
[1728496091163,5.26502,141.29,141.26,3.5417]
[1728496091361,8.83555525,141.29,141.26,3.5417]
[1728496091766,3.5413,141.28,141.26,3.5417]
[1728496091971,5.26502,141.29,141.22,17.02]
[1728496092170,0.12502,141.29,141.22,17.02]
[1728496092357,0.12502,141.29,141.24,17.02]
[1728496092557,0.12502,141.29,141.24,22.16]
[1728496092761,0.12502,141.29,141.28,3.5413]
[1728496111878,0.12502,141.29,141.24,2.766]
[1728496112185,0.12502,141.29,141.25,5.14]
[1728496112186,14.53622,141.29,141.25,5.14]
[1728496113185,14.53622,141.29,141.27,3.5415]
[1728496113486,10.99502,141.29,141.25,16.01]
[1728496114484,10.99502,141.29,141.28,3.5413]
[1728496116490,0.12502,141.29,141.28,3.5413]
[1728496129906,0.12502,141.29,141.28,8.6813]
[1728496133112,0.12502,141.29,141.28,19.5513]
[1728496137106,3.66482,141.35,141.28,16.01]
[1728496137298,10.87,141.34,141.32,3.5402]
[1728496138907,10.87,141.34,141.33,3.5401]
[1728496139503,10.87,141.34,141.32,3.5402]
[1728496139809,14.4102,141.33,141.31,5.14]
[1728496140406,10.87,141.33,141.31,5.14]
[1728496140606,10.87,141.33,141.31,8.6805]
[1728496145516,10.87,141.33,141.32,3.5403]
[1728496151315,14.4103,141.33,141.31,5.14]
[1728496151619,10.87,141.32,141.3,3.5407]
[1728496152020,14.4104,141.32,141.3,3.5407]
[1728496153709,10.87,141.32,141.3,3.5407]
[1728496155422,10.87,141.32,141.28,16.01]
[1728496155618,10.87,141.32,141.31,3.5406]
[1728496156718,4.2452,141.34,141.26,5.12]
[1728496157119,14.4109,141.3,141.26,5.12]
[1728496157718,14.4109,141.3,141.28,3.5413]
[1728496158516,14.4113,141.29,141.26,3.5418]
[1728496158714,3.5413,141.29,141.25,5.12]
[1728496158922,10.87,141.29,141.25,5.12]
[1728496159117,14.4113,141.29,141.26,3.5418]
[1728496160427,10.87,141.29,141.27,3.5414]
[1728496160628,5.12,141.32,141.26,10.87]
[1728496160629,10.87,141.31,141.26,10.87]
[1728496160826,10.87,141.31,141.24,61.48553329]
[1728496160827,10.87,141.32,141.3,3.5406]
[1728496161016,15.1152,141.34,141.29,10.87]
[1728496161421,18.6551,141.34,141.31,3.5404]
[1728496161617,15.1152,141.34,141.3,10.87]
[1728496162524,15.1152,141.34,141.31,3.5405]
[1728496163627,2.8403,141.34,141.3,10.87]
[1728496163832,1.4384,141.34,141.3,10.87]
[1728496164131,1.4384,141.34,141.33,3.5401]
[1728496165233,10.99502,141.35,141.33,3.5401]
[1728496165434,10.99502,141.35,141.34,3.5398]
[1728496165730,0.12502,141.35,141.34,3.5398]
[1728496165925,10.99502,141.35,141.34,3.5398]
[1728496169630,10.99502,141.35,141.33,3.5399]
[1728496171741,10.87,141.34,141.33,3.5399]
[1728496175044,10.99502,141.35,141.33,3.5399]
[1728496176636,10.87,141.34,141.33,3.5399]
[1728496179235,0.12502,141.35,141.31,10.87]
[1728496179437,0.12502,141.35,141.34,3.5398]
[1728496187336,10.99502,141.35,141.34,3.5398]
[1728496193245,10.99502,141.35,141.33,3.5399]
[1728496193649,14.53462,141.35,141.33,3.5399]
[1728496194753,10.99502,141.35,141.33,3.5399]
[1728496195442,10.99502,141.35,141.34,3.5398]
[1728496195850,0.12502,141.35,141.34,3.5398]
[1728496199755,0.12502,141.35,141.34,14.4098]
[1728496202954,1e-08,141.35,141.34,14.4098]
[1728496204859,0.12502,141.41,141.4,3.5383]
[1728496205456,0.12502,141.41,141.39,3.5384]
[1728496205963,0.12502,141.41,141.37,15.99]
[1728496206170,0.12502,141.41,141.38,3.5388]
[1728496206358,0.12502,141.41,141.37,15.99]
[1728496207461,0.12502,141.41,141.39,3.5383]
[1728496208262,3.5385,141.4,141.37,3.539]
[1728496208458,3.5385,141.4,141.36,5.12]
[1728496208962,14.53322,141.41,141.38,3.5387]
[1728496211971,14.53322,141.41,141.33,5.12]
[1728496211972,10.87,141.39,141.33,5.12]
[1728496212165,0.12502,141.41,141.33,15.99]
[1728496212366,0.12502,141.41,141.35,3.5394]
[1728496212367,10.87,141.39,141.35,3.5394]
[1728496212563,10.87,141.39,141.34,10.87]
[1728496213270,10.87,141.39,141.35,10.87]
[1728496214364,10.87,141.39,141.37,3.5389]
[1728496216275,10.87,141.38,141.34,3.5397]
[1728496216574,10.87,141.38,141.33,15.99]
[1728496216770,14.4089,141.38,141.36,3.5391]
[1728496217475,10.87,141.38,141.36,3.5391]
[1728496219473,14.4088,141.38,141.36,3.5391]
[1728496221385,3.5394,141.36,141.34,3.5398]
[1728496221581,10.87,141.37,141.33,5.12]
[1728496222378,3.5395,141.36,141.33,8.6598]
[1728496222576,3.5395,141.36,141.33,5.12]
[1728496223085,3.5395,141.36,141.34,3.5398]
[1728496224674,5.12,141.39,141.34,10.87]
[1728496224874,0.12502,141.41,141.35,10.87]
[1728496225081,10.99502,141.41,141.35,10.87]
[1728496225285,3.5385,141.4,141.35,10.87]
[1728496225785,3.5385,141.4,141.38,3.5387]
[1728496227179,3.5385,141.4,141.33,5.12]
[1728496227180,3.5389,141.38,141.36,3.5391]
[1728496227381,10.87,141.4,141.34,10.87]
[1728496227774,3.5387,141.39,141.37,3.5389]
[1728496228984,3.5401,141.34,141.31,3.5405]
[1728496229184,10.87,141.38,141.29,0.12502]
[1728496229185,10.87,141.33,141.29,0.12502]
[1728496229683,3.5399,141.34,141.31,3.5405]
[1728496229883,14.4099,141.34,141.31,3.5405]
[1728496230688,3.5401,141.33,141.31,3.5405]
[1728496230885,3.5401,141.33,141.3,3.5406]
[1728496231586,10.87,141.34,141.29,10.99502]
[1728496231785,14.41,141.34,141.29,10.99502]
[1728496231988,10.87,141.34,141.29,10.99502]
[1728496232186,10.87,141.34,141.3,5.12]
[1728496232382,10.87,141.34,141.33,3.5401]
[1728496232979,4.2193,141.38,141.32,10.87]
[1728496233184,12.2604,141.38,141.33,15.99]
[1728496233588,12.2604,141.38,141.35,3.5395]
[1728496234182,14.4092,141.37,141.34,3.5397]
[1728496239194,3.5394,141.36,141.33,8.66]
[1728496239497,3.5394,141.36,141.33,5.12]
[1728496239799,14.4092,141.37,141.34,3.5398]
[1728496239989,14.4092,141.37,141.33,5.12]
[1728496240193,3.5392,141.37,141.33,15.99]
[1728496241497,3.5392,141.37,141.35,3.5395]
[1728496249508,10.87,141.37,141.33,5.12]
[1728496250110,3.5395,141.36,141.33,8.6598]
[1728496250408,3.5395,141.36,141.33,5.12]
[1728496250608,10.87,141.37,141.33,5.12]
[1728496250904,14.4092,141.37,141.35,3.5396]
[1728496251703,10.87,141.37,141.33,5.12]
[1728496252009,3.5393,141.36,141.34,3.5397]
[1728496252306,10.87,141.37,141.34,3.5397]
[1728496252511,14.4092,141.37,141.35,3.5396]
[1728496256011,10.87,141.37,141.33,5.12]
[1728496256214,3.5393,141.36,141.34,3.5397]
[1728496256415,10.87,141.37,141.33,5.12]
[1728496257507,3.5395,141.36,141.34,3.5398]
[1728496258914,5.12,141.39,141.33,15.99]
[1728496259213,10.87,141.39,141.33,15.99]
[1728496259614,3.5389,141.38,141.36,3.5392]
[1728496259809,0.12502,141.41,141.35,10.87]
[1728496260015,0.12502,141.41,141.37,10.87]
[1728496260220,14.53332,141.41,141.38,14.4087]
[1728496260420,10.99502,141.41,141.38,3.5387]
[1728496260819,3.5384,141.4,141.38,3.5387]
[1728496261020,10.99502,141.41,141.39,3.5384]
[1728496262025,10.87,141.4,141.36,5.12]
[1728496262325,0.12502,141.41,141.35,5.12]
[1728496262326,10.87,141.39,141.35,5.12]
[1728496262525,10.87,141.37,141.33,5.12]
[1728496262731,10.87,141.37,141.34,3.5398]
[1728496263017,10.87,141.36,141.33,5.12]
[1728496263219,3.5397,141.35,141.33,8.6599]
[1728496264421,3.5398,141.34,141.32,3.5402]
[1728496264623,14.4098,141.34,141.32,3.5402]
[1728496267524,3.5404,141.32,141.3,3.5407]
[1728496268023,14.4102,141.33,141.3,3.5407]
[1728496268522,14.4102,141.33,141.31,3.5406]
[1728496272829,10.87,141.34,141.32,3.5403]
[1728496273227,10.87,141.36,141.32,10.87]
[1728496273421,14.4095,141.36,141.33,3.54]
[1728496274025,3.5396,141.35,141.33,3.54]
[1728496274627,3.5394,141.36,141.32,10.87]
[1728496274937,3.5394,141.36,141.32,15.99]
[1728496275633,3.5394,141.36,141.33,3.54]
[1728496276034,10.87,141.37,141.32,15.99]
[1728496276232,10.87,141.38,141.33,10.87]
[1728496276431,10.87,141.38,141.34,10.87]
[1728496276830,10.87,141.4,141.35,10.87]
[1728496277235,10.87,141.4,141.35,15.99]
[1728496277635,16.11502,141.41,141.37,10.87]
[1728496277939,16.11502,141.41,141.38,3.5387]
[1728496277940,14.53322,141.41,141.38,3.5387]
[1728496278326,10.99502,141.41,141.37,10.87]
[1728496278532,10.99502,141.41,141.39,3.5384]
[1728496279336,10.99502,141.41,141.37,10.87]
[1728496279337,10.99502,141.41,141.4,3.5383]
[1728496279536,0.12502,141.41,141.37,10.87]
[1728496280341,10.99502,141.41,141.39,3.5385]
[1728496282532,0.12502,141.41,141.37,10.87]
[1728496282742,0.12502,141.41,141.4,3.5383]
[1728496284345,10.99502,141.41,141.38,8.6587]
[1728496284550,3.5385,141.4,141.38,5.12]
[1728496284752,10.87,141.39,141.32,67.20382587]
[1728496284963,0.12502,141.41,141.34,3.5397]
[1728496284964,10.87,141.37,141.34,3.5397]
[1728496285252,14.4092,141.37,141.34,3.5397]
[1728496285457,10.87,141.37,141.34,3.5397]
[1728496285646,14.4091,141.37,141.34,3.5397]
[1728496286646,14.4091,141.37,141.35,3.5395]
[1728496286846,10.87,141.37,141.33,5.12]
[1728496287246,10.87,141.37,141.34,3.5396]
[1728496287644,14.4092,141.37,141.34,3.5396]
[1728496288052,10.87,141.35,141.33,8.6599]
[1728496288253,10.87,141.34,141.31,5.12]
[1728496289054,10.87,141.37,141.32,10.87]
[1728496290055,14.4092,141.37,141.32,10.87]
[1728496290957,14.4092,141.37,141.34,3.5397]
[1728496291751,10.87,141.37,141.34,3.5396]
[1728496292457,14.4091,141.37,141.34,3.5396]
[1728496292660,10.87,141.37,141.35,3.5394]
[1728496292966,14.4089,141.38,141.35,3.5394]
[1728496293358,10.87,141.36,141.34,3.5397]
[1728496294558,9.2801,141.4,141.35,3.5396]
[1728496294559,3.5389,141.38,141.35,3.5396]
[1728496294758,10.87,141.37,141.32,10.87]
[1728496295455,14.4092,141.37,141.34,3.5396]
[1728496295652,14.4092,141.37,141.32,10.87]
[1728496296456,14.4092,141.37,141.35,3.5395]
[1728496297254,10.87,141.38,141.37,3.5389]
[1728496297457,10.87,141.38,141.33,10.87]
[1728496297762,14.4088,141.38,141.35,3.5394]
[1728496297952,14.4088,141.38,141.33,10.87]
[1728496299557,14.4088,141.38,141.36,3.5392]
[1728496299759,10.87,141.38,141.36,3.5392]
[1728496300462,14.4089,141.38,141.36,3.5392]
[1728496303350,3.5393,141.36,141.34,8.6597]
[1728496303554,14.4093,141.36,141.34,8.6597]
[1728496303850,10.87,141.36,141.32,10.87]
[1728496304050,10.87,141.37,141.32,10.87]
[1728496304560,14.4092,141.37,141.35,3.5394]
[1728496306357,14.4092,141.37,141.31,7.8673]
[1728496306358,10.87,141.37,141.31,18.7373]
[1728496306554,10.87,141.37,141.34,3.5397]
[1728496307362,3.5393,141.36,141.34,3.5397]
[1728496307965,10.87,141.37,141.31,18.7373]
[1728496308156,14.4092,141.37,141.35,3.5396]
[1728496311064,10.87,141.37,141.31,18.7373]
[1728496311263,3.5394,141.36,141.34,3.5397]
[1728496311560,10.87,141.37,141.34,3.5397]
[1728496312158,14.4092,141.37,141.32,3.5401]
[1728496312358,14.4092,141.37,141.31,18.7373]
[1728496313361,14.4092,141.37,141.35,3.5395]
[1728496315369,3.5393,141.36,141.34,3.5397]
[1728496319775,10.87,141.37,141.34,3.5397]
[1728496319974,14.4092,141.37,141.34,3.5397]
[1728496321663,10.87,141.35,141.31,5.12]
[1728496321868,14.4097,141.35,141.33,3.5399]
[1728496322268,10.87,141.35,141.31,5.12]
[1728496322868,10.87,141.35,141.31,15.99]
[1728496323070,10.87,141.37,141.32,10.87]
[1728496323573,3.5392,141.37,141.35,3.5395]
[1728496323776,12.3179,141.4,141.36,10.87]
[1728496323970,10.99502,141.41,141.37,10.87]
[1728496324165,10.87,141.39,141.37,3.5388]
[1728496325069,14.4084,141.4,141.38,3.5388]
[1728496325575,0.12502,141.41,141.4,3.5383]
[1728496332370,10.99502,141.41,141.4,3.5383]
[1728496333179,0.12502,141.41,141.4,14.4083]
[1728496333484,0.12502,141.41,141.4,19.5283]
[1728496333980,0.12502,141.41,141.37,15.99]
[1728496336385,0.12502,141.41,141.4,3.5383]
[1728496339084,0.12502,141.41,141.34,8.4001]
[1728496339085,10.99502,141.41,141.34,1.3207]
[1728496339279,10.87,141.38,141.34,5.12]
[1728496339482,0.12502,141.41,141.32,10.87]
[1728496339483,10.87,141.35,141.32,5.12]
[1728496340081,10.87,141.36,141.32,5.12]
[1728496340576,10.87,141.35,141.32,5.12]
[1728496340782,10.87,141.35,141.33,3.5399]
[1728496341287,10.87,141.35,141.34,3.5398]
[1728496341690,10.87,141.35,141.31,1.3877]
[1728496341888,14.4097,141.35,141.32,3.5401]
[1728496342482,10.87,141.33,141.31,3.5404]
[1728496343990,10.87,141.33,141.32,3.5403]
[1728496344295,10.87,141.33,141.29,6.64212]
[1728496344483,10.87,141.36,141.3,10.87]
[1728496344684,10.87,141.37,141.33,10.87]
[1728496344888,10.87,141.36,141.31,10.87]
[1728496345088,10.87,141.35,141.32,3.5403]
[1728496345687,10.87,141.34,141.32,3.5403]
[1728496346396,14.4099,141.34,141.32,3.5403]
[1728496346689,14.4099,141.34,141.31,3.5405]
[1728496346890,5.12,141.34,141.29,0.12502]
[1728496347195,10.87,141.3,141.22,10.87]
[1728496347395,10.87,141.26,141.22,10.87]
[1728496347591,10.87,141.26,141.22,15.99]
[1728496347787,3.5416,141.27,141.22,15.99]
[1728496347788,10.87,141.27,141.22,15.99]
[1728496348689,10.87,141.27,141.25,3.5419]
[1728496348994,10.87,141.28,141.24,10.87]
[1728496349390,10.87,141.3,141.25,10.87]
[1728496349592,10.87,141.32,141.27,10.87]
[1728496350498,10.87,141.32,141.28,10.87]
[1728496350997,8.6599,141.34,141.26,18.4166]
[1728496351293,8.78462,141.35,141.28,17.01]
[1728496351495,8.78462,141.35,141.28,22.13]
[1728496351798,5.24502,141.35,141.3,3.5408]
[1728496351990,5.24502,141.35,141.28,22.13]
[1728496352392,5.24502,141.35,141.32,3.5403]
[1728496352393,8.78472,141.35,141.32,3.5403]
[1728496353094,0.12502,141.35,141.33,3.54]
[1728496353299,0.12502,141.35,141.28,22.13]
[1728496353890,3.66472,141.35,141.32,3.5401]
[1728496354293,0.12502,141.35,141.31,5.12]
[1728496354597,0.12502,141.35,141.34,3.5398]
[1728496354898,0.12502,141.35,141.31,5.12]
[1728496355095,22.25502,141.35,141.27,1.3128]
[1728496355300,22.25502,141.35,141.27,5.12]
[1728496355495,22.25502,141.35,141.28,3.5412]
[1728496355496,3.5407,141.31,141.28,3.5412]
[1728496356400,3.5407,141.31,141.29,3.541]
[1728496357707,3.5405,141.32,141.29,3.541]
[1728496358007,17.01,141.33,141.29,3.541]
[1728496358196,3.5404,141.32,141.29,3.541]
[1728496360103,3.5407,141.31,141.28,3.5412]
[1728496360308,17.01,141.33,141.28,3.5412]
[1728496360803,3.5405,141.32,141.28,3.5411]
[1728496360997,3.5405,141.32,141.27,5.12]
[1728496361402,3.5405,141.32,141.29,3.5409]
[1728496361697,17.01,141.34,141.29,3.5409]
[1728496362507,22.13,141.34,141.31,3.5404]
[1728496362711,0.12502,141.35,141.31,3.5404]
[1728496363423,0.12502,141.35,141.28,5.12]
[1728496363720,0.12502,141.35,141.28,6.5436]
[1728496363922,3.5398,141.34,141.31,3.5403]
[1728496364519,3.66472,141.35,141.32,3.5403]
[1728496364717,0.12502,141.35,141.32,3.5403]
[1728496364919,0.12502,141.35,141.31,3.5404]
[1728496365118,3.5399,141.34,141.28,6.5436]
[1728496366524,3.5399,141.34,141.32,3.5403]
[1728496367826,17.13502,141.35,141.28,6.5436]
[1728496368126,17.13502,141.35,141.29,3.5411]
[1728496368311,17.13502,141.35,141.28,5.12]
[1728496368513,0.12502,141.35,141.32,3.5403]
[1728496368726,0.12502,141.35,141.28,5.12]
[1728496368924,3.54,141.34,141.31,3.5404]
[1728496369327,0.12502,141.35,141.28,5.12]
[1728496369521,3.66462,141.35,141.33,3.54]
[1728496372526,3.66462,141.35,141.32,3.5402]
[1728496372729,10.88,141.34,141.32,3.5402]
[1728496374427,14.4198,141.34,141.32,3.5402]
[1728496379432,14.54472,141.35,141.33,3.5401]
[1728496379628,0.12502,141.35,141.33,10.88]
[1728496380024,0.12502,141.35,141.32,10.88]
[1728496380622,0.12502,141.35,141.34,3.5398]
[1728496381222,11.00502,141.35,141.31,5.12]
[1728496382133,14.54462,141.35,141.33,3.54]
[1728496382319,0.12502,141.35,141.32,10.88]
[1728496383235,0.12502,141.35,141.33,3.5401]
[1728496384434,3.66472,141.35,141.33,3.5401]
[1728496385442,10.88,141.34,141.31,5.12]
[1728496385624,10.88,141.34,141.29,10.88]
[1728496386035,10.88,141.32,141.3,3.5407]
[1728496386433,14.4203,141.32,141.3,3.5407]
[1728496386638,10.88,141.32,141.3,3.5407]
[1728496388733,14.4205,141.32,141.3,3.5407]
[1728496389333,14.4205,141.32,141.28,16.0]
[1728496389634,10.88,141.31,141.28,5.12]
[1728496390034,14.4206,141.31,141.29,3.5409]
[1728496390544,10.88,141.3,141.28,3.5411]
[1728496390744,10.88,141.3,141.26,18.7177]
[1728496391435,10.88,141.3,141.29,3.5411]
[1728496391643,5.24502,141.35,141.29,3.5411]
[1728496391644,19.66472,141.35,141.29,10.88]
[1728496391844,0.12502,141.35,141.33,3.5398]
[1728496392247,3.66472,141.35,141.31,10.88]
[1728496392445,14.54472,141.35,141.32,3.5401]
[1728496392853,0.12502,141.35,141.31,10.88]
[1728496393042,0.12502,141.35,141.34,3.5398]
[1728496393445,0.12502,141.35,141.29,8.6609]
[1728496393446,3.5404,141.32,141.29,8.6609]
[1728496393647,10.88,141.33,141.29,5.12]
[1728496394149,14.4202,141.33,141.31,3.5404]
[1728496395048,10.88,141.32,141.26,2.7177]
[1728496395246,10.88,141.32,141.27,10.88]
[1728496395656,3.5407,141.31,141.27,10.88]
[1728496396252,14.4205,141.32,141.29,3.5409]
[1728496396753,10.88,141.32,141.29,3.5409]
[1728496397451,3.5407,141.31,141.29,3.5409]
[1728496398348,10.88,141.3,141.26,5.12]
[1728496398741,3.5411,141.29,141.27,3.5414]
[1728496398949,14.4211,141.29,141.27,3.5414]
[1728496399157,10.88,141.28,141.23,0.12502]
[1728496399454,8.57819539,141.31,141.23,0.12502]
[1728496399455,10.88,141.26,141.23,0.12502]